bitfinex/quotes_ETHUSD_20240810
["timestamp","ask_amount","ask_price","bid_price","bid_amount"]
[1723298460823,1.91293,2613.8,2613.2,1.91335]
[1723298461417,1.9131,2613.6,2612.9,2.4247]
[1723298461779,1.91326,2613.4,2612.9,2.858533]
[1723298461919,1.91343,2613.1,2612.7,19.4599976]
[1723298462229,3.0,2613.1,2612.7,19.4599976]
[1723298462431,1.91359,2612.9,2612.7,19.4599976]
[1723298462646,1.91351,2613.0,2612.7,19.4599976]
[1723298463044,1.91359,2612.9,2612.7,19.4599976]
[1723298463230,1.91351,2613.0,2612.7,19.4599976]
[1723298463437,3.0,2613.1,2612.7,22.39746736]
[1723298463771,4.913,2613.7,2613.0,1.91345]
[1723298463985,4.913,2613.7,2613.1,0.07652524]
[1723298464257,1.91308,2613.6,2612.8,1.91363]
[1723298464466,1.91314,2613.5,2612.9,1.91357]
[1723298464662,3.0,2613.5,2613.0,2.29617]
[1723298464860,3.0,2613.5,2613.2,2.4247]
[1723298465261,1.913,2613.7,2613.3,0.07652558]
[1723298465262,3.0,2613.7,2613.3,0.07652558]
[1723298465449,3.0,2613.7,2613.2,21.8846976]
[1723298465654,1.91295,2613.8,2613.2,24.49412936]
[1723298466027,2.4922,2614.1,2613.2,19.4599976]
[1723298466028,4.91281,2614.0,2613.2,19.4599976]
[1723298466234,4.91281,2614.0,2612.8,1.91363]
[1723298466235,1.91322,2613.4,2613.1,19.4599976]
[1723298466542,1.91322,2613.4,2613.2,19.4599976]
[1723298467341,3.0,2613.5,2613.2,19.4599976]
[1723298467557,1.9128,2614.0,2613.3,0.0765256]
[1723298467850,3.0,2613.7,2613.3,19.5365232]
[1723298468051,4.91285,2613.9,2613.3,22.0674355]
[1723298468254,3.0,2613.9,2613.3,19.4599976]
[1723298468465,3.82642,2613.4,2613.3,19.4599976]
[1723298468679,1.91329,2613.3,2612.8,19.4599976]
[1723298468824,1.91329,2613.3,2612.9,3.8302436]
[1723298469026,4.91329,2613.3,2612.9,3.8302436]
[1723298469247,1.91343,2613.1,2612.9,3.8302436]
[1723298469776,3.0,2613.2,2612.9,3.8302436]
[1723298469932,1.91322,2613.4,2612.9,3.8302436]
[1723298470551,3.0,2613.5,2613.0,4.67022412]
[1723298470755,1.91313,2613.6,2613.0,4.67022412]
[1723298470953,1.91326,2613.4,2613.0,4.67022412]
[1723298471361,1.9133,2613.3,2613.0,4.67022412]
[1723298472350,3.0,2613.5,2613.0,4.67022412]
[1723298472351,4.9132,2613.5,2613.0,4.67022412]
[1723298472668,1.91329,2613.3,2613.0,4.67022412]
[1723298473085,3.0,2613.3,2613.0,2.3412]
[1723298473246,3.0,2613.4,2613.0,2.3412]
[1723298473647,7.44,2615.5,2613.0,2.3412]
[1723298473648,1.91287,2613.9,2613.0,2.3412]
[1723298473888,6.188778,2614.8,2613.3,1.91323]
[1723298473889,1.91278,2614.0,2613.3,1.91323]
[1723298474100,1.91278,2614.0,2613.4,0.50195701]
[1723298474250,1.91314,2613.5,2613.4,0.06333121]
[1723298474649,1.91322,2613.4,2612.8,4.25485]
[1723298474867,1.91322,2613.4,2612.9,0.425487]
[1723298477662,3.0,2613.5,2613.1,1.91342]
[1723298477869,3.0,2614.0,2613.2,2.3412]
[1723298478069,1.91286,2613.9,2613.3,19.4599976]
[1723298478384,4.91286,2613.9,2613.3,21.3732776]
[1723298478697,1.91283,2614.0,2613.4,21.3731976]
[1723298478904,1.91283,2614.0,2613.4,23.74464536]
[1723298479055,1.91283,2614.0,2613.4,21.83144536]
[1723298479257,1.91266,2614.2,2613.6,1.91306]
[1723298479494,1.91251,2614.4,2613.7,1.91294]
[1723298479798,1.91251,2614.4,2613.5,1.91307]
[1723298479799,1.91267,2614.2,2613.5,1.91307]
[1723298480099,1.91275,2614.1,2613.5,1.91307]
[1723298480594,1.91267,2614.2,2613.5,1.91307]
[1723298480805,1.91267,2614.2,2613.6,0.07650941]
[1723298481803,3.82448,2614.8,2613.9,1.9128]
[1723298481952,1.91222,2614.8,2614.1,2.3412]
[1723298482157,1.91222,2614.8,2614.2,0.07649561]
[1723298482353,1.91219,2614.9,2614.2,0.07649561]
[1723298482651,1.91208,2615.0,2614.2,0.07649561]
[1723298482652,2.15581,2615.0,2614.2,0.07649561]
[1723298483070,1.91221,2614.8,2614.2,1.98907561]
[1723298483260,1.91221,2614.8,2614.3,0.07649365]
[1723298483793,2.15581,2615.0,2614.3,1.98904365]
[1723298483953,1.9122,2614.8,2614.3,0.07649365]
[1723298484164,1.9122,2614.8,2614.1,2.3412]
[1723298484368,0.459311,2614.9,2613.5,2.3412]
[1723298484671,1.91253,2614.4,2613.7,3.82589]
[1723298485270,1.91253,2614.4,2613.7,1.91294]
[1723298485487,1.91253,2614.4,2613.7,3.82588]
[1723298485688,1.91253,2614.4,2613.7,1.91294]
[1723298485996,1.91253,2614.4,2613.8,1.91287]
[1723298486602,3.0,2614.5,2614.1,1.91263]
[1723298486818,3.0,2614.9,2614.3,1.91254]
[1723298486967,1.91194,2615.2,2614.4,0.07575634]
[1723298487404,1.91203,2615.1,2614.5,1.97413376]
[1723298487581,3.7789635,2615.1,2614.6,1.91231]
[1723298487792,3.7789635,2615.1,2614.7,0.0615315]
[1723298487992,0.7789635,2615.1,2614.7,21.4337891]
[1723298488194,0.440395,2615.3,2614.8,1.91212]
[1723298488409,1.91187,2615.3,2614.9,0.06134028]
[1723298488614,1.91187,2615.3,2614.7,21.3721976]
[1723298488829,1.91189,2615.2,2615.0,0.0611803]
[1723298488992,1.91189,2615.2,2614.7,21.3721976]
[1723298489191,1.9118,2615.4,2614.8,0.06137151]
[1723298489498,1.91184,2615.3,2614.8,0.06137151]
[1723298489711,1.91183,2615.3,2614.8,0.06137151]
[1723298489878,4.91183,2615.3,2614.8,0.06137151]
[1723298490594,3.0,2615.3,2615.0,1.91202]
[1723298490915,1.91189,2615.3,2615.1,0.0610847]
[1723298491116,2.2737004,2615.3,2615.1,0.0610847]
[1723298491307,2.2737004,2615.3,2614.7,19.4599976]
[1723298491494,4.91189,2615.3,2615.2,0.06043003]
[1723298491696,1.91191,2615.2,2614.7,19.4599976]
[1723298491892,4.91191,2615.2,2614.7,19.4599976]
[1723298492092,3.0,2615.2,2614.7,19.4599976]
[1723298492303,1.9121,2615.0,2614.7,19.4599976]
[1723298492503,4.9121,2615.0,2614.7,19.4599976]
[1723298492814,3.0,2615.0,2614.7,19.4599976]
[1723298493114,0.3,2615.1,2614.7,21.3722376]
[1723298493115,3.0,2615.1,2614.7,21.3722376]
[1723298493415,4.91187,2615.3,2614.7,26.56636136]
[1723298493817,1.91177,2615.4,2614.9,1.91211]
[1723298495220,3.0,2615.5,2615.0,1.91204]
[1723298495382,4.91163,2615.6,2614.9,4.75995714]
[1723298496181,1.91189,2615.3,2614.8,19.4599976]
[1723298496379,3.918072,2615.6,2614.8,19.4599976]
[1723298496380,1.91204,2615.0,2614.8,19.4599976]
[1723298496618,3.0,2615.1,2614.8,19.4599976]
[1723298496784,3.918146,2615.1,2614.8,19.4599976]
[1723298496991,3.0,2615.1,2614.8,21.3721776]
[1723298497187,4.91177,2615.4,2614.8,21.3721776]
[1723298497802,3.0,2615.4,2614.9,1.91208]
[1723298498016,5.3576,2615.5,2614.9,1.91208]
[1723298499287,1.91176,2615.4,2614.7,1.91221]
[1723298499483,4.91176,2615.4,2614.8,1.91214]
[1723298499792,4.91176,2615.4,2614.9,1.91211]
[1723298500321,3.0,2615.4,2614.9,3.82417]
[1723298500525,3.0,2615.5,2614.9,1.91206]
[1723298500730,1.91149,2615.8,2615.1,1.91191]
[1723298500940,1.91149,2615.8,2615.2,1.91183]
[1723298501235,1.91149,2615.8,2615.3,0.07646395]
[1723298502444,0.85500818,2616.5,2615.4,2.3079]
[1723298502599,1.91122,2616.2,2615.5,1.98808582]
[1723298503425,1.91126,2616.1,2615.5,1.98808582]
[1723298503739,1.91118,2616.2,2615.6,2.3079]
[1723298504044,1.91118,2616.2,2615.6,4.27928701]
[1723298504403,1.91118,2616.2,2615.7,0.07645106]
[1723298504605,3.0,2616.3,2615.8,0.05945711]
[1723298504811,0.491105,2616.3,2615.8,0.13590624]
[1723298505333,1.91105,2616.4,2615.8,2.04731624]
[1723298505662,2.3576,2616.4,2615.8,1.97086711]
[1723298505818,1.91114,2616.3,2615.8,0.05945711]
[1723298506007,1.91117,2616.2,2615.6,1.91156]
[1723298506204,1.91102,2616.4,2615.7,0.05955266]
[1723298506431,1.91096,2616.5,2615.7,0.25666393]
[1723298506626,3.0,2616.6,2615.9,1.91133]
[1723298506819,1.91081,2616.7,2616.1,1.91122]
[1723298507002,1.91081,2616.7,2616.2,0.05907501]
[1723298507228,1.91068,2616.9,2616.2,0.05907501]
[1723298507430,4.67368,2616.9,2616.3,2.3364]
[1723298507608,4.67368,2616.9,2616.4,0.058884]
[1723298507802,1.91073,2616.8,2616.4,0.058884]
[1723298508242,4.67368,2616.9,2616.4,0.058884]
[1723298508243,2.763,2616.6,2616.4,0.058884]
[1723298508440,11.456581,2616.5,2616.4,0.058884]
[1723298508741,1.91158,2615.7,2615.0,23.7084376]
[1723298509060,1.91158,2615.7,2615.0,4.24844]
[1723298509244,5.763,2615.8,2615.1,1.91197]
[1723298509543,5.763,2615.8,2615.4,1.91174]
[1723298509753,5.763,2615.8,2615.2,1.91188]
[1723298509918,5.763,2615.8,2615.0,2.3364]
[1723298510124,2.763,2615.5,2615.0,2.3364]
[1723298510326,3.0,2615.4,2615.0,2.3364]
[1723298510835,2.763,2615.8,2615.3,1.91176]
[1723298511231,4.6743,2616.1,2615.4,1.9881983]
[1723298511652,3.0,2616.0,2615.4,1.9881983]
[1723298511855,3.0,2616.0,2615.5,4.24807]
[1723298512026,3.0,2616.2,2615.6,1.98805305]
[1723298512231,3.78773,2616.2,2615.6,1.98805305]
[1723298512642,3.78773,2616.2,2615.0,0.424857]
[1723298512643,1.91138,2615.9,2615.2,2.3364]
[1723298513445,1.91146,2615.8,2615.2,2.3364]
[1723298513822,1.91153,2615.7,2615.2,2.3364]
[1723298514657,2.402518,2615.9,2615.2,2.3364]
[1723298514948,2.402518,2615.9,2615.2,4.24828]
[1723298514949,4.313968,2615.9,2615.2,4.24828]
[1723298515153,2.402518,2615.9,2615.2,4.24828]
[1723298515651,2.402518,2615.9,2615.3,19.4599976]
[1723298515855,1.91138,2615.9,2615.3,19.4599976]
[1723298516259,1.91138,2615.9,2615.4,0.05559613]
[1723298516260,1.91154,2615.7,2615.4,0.05559613]
[1723298516641,1.91168,2615.5,2615.4,0.05559613]
[1723298517047,1.91168,2615.5,2615.1,19.4599976]
[1723298517250,1.91168,2615.5,2615.2,0.05578729]
[1723298518327,3.82342,2615.5,2615.2,0.05578729]
[1723298518656,1.91168,2615.5,2615.2,0.05578729]
[1723298518822,1.91182,2615.3,2615.2,0.05578729]
[1723298519019,6.82364,2615.3,2615.2,0.05578729]
[1723298519438,4.91182,2615.3,2615.2,0.05578729]
[1723298519949,1.91201,2615.1,2614.7,19.4599976]
[1723298520139,1.91201,2615.1,2614.8,19.4599976]
[1723298520340,1.91211,2614.9,2614.8,19.4599976]
[1723298520562,1.91227,2614.7,2614.3,2.3364]
[1723298521052,1.91227,2614.7,2614.2,7.49]
[1723298521053,3.82459,2614.7,2614.2,7.49]
[1723298521255,1.91227,2614.7,2614.2,19.4599976]
[1723298521866,3.8246,2614.7,2614.2,19.4599976]
[1723298522231,4.91234,2614.6,2614.2,19.4599976]
[1723298522427,1.91234,2614.6,2614.2,19.4599976]
[1723298522628,4.91234,2614.6,2614.2,19.4599976]
[1723298523759,1.9125,2614.4,2614.2,19.4599976]
[1723298523928,0.682492,2614.4,2613.9,19.4599976]
[1723298524137,1.9127,2614.2,2613.9,19.4599976]
[1723298524353,4.9127,2614.2,2613.9,19.4599976]
[1723298524544,1.91277,2614.0,2613.9,19.4599976]
[1723298525749,1.91286,2613.9,2613.5,2.3364]
[1723298525946,1.91286,2613.9,2613.5,21.7963976]
[1723298526168,3.0,2613.9,2613.5,21.7963976]
[1723298526486,1.91277,2614.0,2613.5,21.7963976]
[1723298527262,3.82561,2614.0,2613.5,24.93977636]
[1723298527469,3.0,2613.9,2613.5,24.93977636]
[1723298527796,1.91292,2613.8,2613.5,22.60337636]
[1723298528080,1.913,2613.7,2613.5,19.4599976]
[1723298528599,4.913,2613.7,2613.5,19.4599976]
[1723298529756,3.0,2613.7,2613.5,19.4599976]
[1723298529955,4.91293,2613.8,2613.5,19.4599976]
[1723298530488,4.91293,2613.8,2613.3,19.4599976]
[1723298530695,3.0,2613.8,2613.5,2.3638]
[1723298530987,1.91278,2614.0,2613.5,2.3638]
[1723298531183,4.91278,2614.0,2613.5,2.3638]
[1723298531383,0.910764,2614.0,2613.3,19.4599976]
[1723298531589,3.684,2613.9,2613.1,19.4599976]
[1723298531796,1.91311,2613.6,2613.1,19.4599976]
[1723298532168,1.91314,2613.5,2613.1,19.4599976]
[1723298532348,3.0,2613.5,2613.1,19.4599976]
[1723298532550,3.0,2613.5,2613.1,22.39137736]
[1723298532746,3.0,2613.7,2613.1,22.39137736]
[1723298532963,4.91294,2613.8,2613.1,22.39137736]
[1723298533663,4.91294,2613.8,2613.2,0.05754527]
[1723298533867,4.91294,2613.8,2613.2,3.24278353]
[1723298534524,4.91294,2613.8,2613.2,5.15614353]
[1723298535567,3.0,2613.8,2613.2,5.15614353]
[1723298535769,3.0,2613.8,2613.4,1.91316]
[1723298536006,3.0,2613.8,2613.5,0.05725811]
[1723298536226,3.0,2613.8,2613.5,2.40376992]
[1723298536406,3.0,2613.8,2613.5,19.51725571]
[1723298536913,4.91293,2613.8,2613.5,19.51725571]
[1723298539267,3.0,2613.8,2613.5,19.51725571]
[1723298539709,3.0,2613.8,2613.5,21.43034571]
[1723298541123,3.0,2613.8,2613.5,23.34343571]
[1723298541422,3.0,2613.8,2613.6,2.33434357]
[1723298541721,3.0,2613.8,2613.7,0.05699919]
[1723298541925,1.91266,2614.2,2613.8,1.91285]
[1723298541926,2.767,2614.2,2613.8,1.91285]
[1723298542131,2.767,2614.2,2613.9,0.0765061]
[1723298542284,2.767,2614.2,2613.9,0.13331391]
[1723298543429,3.0,2614.1,2613.9,0.13331391]
[1723298543615,3.0,2614.1,2613.9,0.05680781]
[1723298545635,3.0,2614.1,2613.9,2.16582294]
[1723298545852,3.0,2614.1,2613.9,2.24232984]
[1723298547291,3.0,2614.1,2613.9,2.16582294]
[1723298547521,3.0,2614.1,2613.9,4.07866294]
[1723298547739,3.0,2614.4,2613.9,4.07866294]
[1723298548317,3.0,2614.4,2613.9,2.16582294]
[1723298548513,4.9125,2614.4,2613.9,2.16582294]
[1723298549391,3.0,2614.4,2614.0,1.91277]
[1723298549908,3.0,2614.4,2614.1,0.05454241]
[1723298550230,3.0,2614.4,2614.1,19.51454001]
[1723298551327,3.0,2614.4,2614.1,21.86817252]
[1723298554235,3.0,2614.4,2614.2,19.4599976]
[1723298554542,3.0,2614.4,2614.3,0.05435109]
[1723298554894,1.91209,2615.0,2614.4,1.91247]
[1723298555094,2.767,2615.0,2614.5,2.04289973]
[1723298555329,2.767,2615.0,2614.5,4.38443246]
[1723298555546,2.274,2615.1,2614.6,1.91232]
[1723298555707,2.767,2615.1,2614.7,0.07648145]
[1723298555907,2.767,2615.1,2614.7,0.13021433]
[1723298556434,3.0,2615.0,2614.8,0.07648259]
[1723298556615,4.67878,2615.4,2614.8,0.07648259]
[1723298556933,2.767,2615.5,2614.9,1.96549682]
[1723298557159,2.767,2615.5,2615.0,1.91204]
[1723298557640,2.767,2615.5,2615.1,1.96515226]
[1723298558007,2.767,2615.5,2615.2,2.4277]
[1723298558349,2.767,2615.5,2615.3,0.05294389]
[1723298558501,2.767,2615.5,2615.3,1.96476389]
[1723298558701,2.767,2615.8,2615.3,2.48812232]
[1723298558946,2.767,2615.8,2615.3,2.04122924]
[1723298559454,2.767,2615.8,2615.5,1.91163]
[1723298559752,2.767,2616.1,2615.6,0.05253607]
[1723298560048,2.767,2616.1,2615.6,2.04055597]
[1723298560350,1.91105,2616.4,2615.6,2.04055597]
[1723298560351,2.767,2616.4,2615.9,1.91136]
[1723298560703,2.767,2616.4,2616.0,0.05212363]
[1723298562048,3.0,2616.3,2615.9,1.91136]
[1723298562556,3.0,2616.3,2616.0,1.9113]
[1723298562919,3.0,2616.3,2616.1,0.1282786]
[1723298563124,3.0,2616.6,2616.2,1.91116]
[1723298563329,2.767,2616.7,2616.1,0.1282786]
[1723298563330,2.767,2616.7,2616.3,4.41517697]
[1723298563644,4.6776,2617.0,2616.4,1.91099]
[1723298563845,5.287104,2617.0,2616.5,0.07642808]
[1723298564047,5.287104,2617.0,2616.5,0.12780853]
[1723298565355,3.0,2616.9,2616.5,2.03873853]
[1723298565626,3.0,2616.9,2616.5,0.12780853]
[1723298566029,3.0,2616.9,2616.5,1.96226045]
[1723298566539,1.91044,2617.2,2616.5,1.96226045]
[1723298566540,4.91044,2617.2,2616.5,1.96226045]
[1723298566858,0.467744,2617.1,2616.6,19.4599976]
[1723298567058,2.67596803,2617.6,2616.9,1.91061]
[1723298567059,4.6772,2617.6,2616.9,1.91061]
[1723298567360,1.91024,2617.5,2617.0,0.12645956]
[1723298567868,4.67715,2617.6,2617.0,1.96062544]
[1723298568065,4.67715,2617.6,2617.0,0.05004544]
[1723298568274,3.0,2617.5,2617.0,0.05004544]
[1723298568418,3.0,2617.5,2617.0,0.24611098]
[1723298568626,3.0,2617.5,2617.0,2.15668098]
[1723298569136,3.0,2617.5,2617.0,0.24611098]
[1723298569467,3.0,2617.5,2617.0,0.05004544]
[1723298570674,3.0,2617.5,2617.0,1.96055544]
[1723298570866,3.0,2617.5,2617.2,1.91042]
[1723298571157,3.0,2617.8,2617.3,0.04975912]
[1723298571371,3.0,2617.8,2617.3,1.91031]
[1723298571862,3.0,2617.8,2617.4,0.04945874]
[1723298572588,4.91,2617.8,2617.4,0.04945874]
[1723298572743,6.112208,2617.8,2617.4,0.04945874]
[1723298572925,6.112208,2617.8,2617.2,2.3683]
[1723298573119,6.112208,2617.8,2617.5,0.04936332]
[1723298573354,6.112208,2617.8,2617.2,2.3683]
[1723298573578,1.91007,2617.7,2617.6,0.04926791]
[1723298573729,10.4750678,2617.7,2616.9,2.3683]
[1723298573932,1.91015,2617.6,2616.9,2.3683]
[1723298574136,4.91015,2617.6,2617.0,0.04972631]
[1723298574550,3.0,2617.6,2617.0,0.04972631]
[1723298574753,1.91023,2617.5,2617.0,0.04972631]
[1723298574927,4.91023,2617.5,2617.0,0.04972631]
[1723298575371,1.91023,2617.5,2617.0,0.04972631]
[1723298576068,3.0,2617.6,2617.0,0.04972631]
[1723298576069,4.91018,2617.6,2617.0,0.04972631]
[1723298577171,4.91018,2617.6,2617.0,0.48258794]
[1723298577522,4.91018,2617.6,2617.0,0.04972631]
[1723298577523,4.67741,2617.3,2617.0,0.04972631]
[1723298577727,1.91059,2617.0,2616.5,29.3182976]
[1723298577949,1.91059,2617.0,2616.6,19.4599976]
[1723298578331,1.91112,2616.3,2615.3,2.3683]
[1723298578590,1.91131,2616.0,2615.3,2.3683]
[1723298578750,2.767,2615.8,2615.3,2.3683]
[1723298578954,2.767,2615.8,2615.4,0.04914214]
[1723298578955,1.91161,2615.6,2615.4,0.04914214]
[1723298579296,1.91213,2614.9,2614.4,2.3683]
[1723298579492,1.91219,2614.8,2614.1,2.3683]
[1723298579679,4.67904,2615.0,2614.1,2.3683]
[1723298579680,1.91226,2614.7,2614.1,2.3683]
[1723298580186,1.91219,2614.8,2614.1,2.3683]
[1723298580486,3.0,2614.9,2614.1,2.3683]
[1723298580487,1.91226,2614.7,2614.2,0.23683]
[1723298580791,4.91213,2614.9,2614.2,0.23683]
[1723298581099,1.91219,2614.8,2614.2,0.23683]
[1723298582387,3.0,2614.9,2614.3,1.91254]
[1723298582585,3.0,2615.0,2614.4,2.127357]
[1723298584396,3.687,2615.5,2614.7,4.2805]
[1723298584600,3.687,2615.5,2614.8,0.42805]
[1723298585302,5.59868,2615.5,2614.8,2.34019]
[1723298585597,3.0,2615.4,2614.8,2.34019]
[1723298585783,3.0,2615.4,2614.8,2.34023]
[1723298586864,4.91176,2615.4,2614.8,2.34023]
[1723298587467,3.0,2615.4,2614.9,1.91207]
[1723298588082,3.0,2615.4,2614.8,2.34023]
[1723298589870,3.0,2615.4,2614.9,19.4599976]
[1723298590074,3.0,2615.4,2614.9,23.78896036]
[1723298590573,3.0,2615.4,2615.2,1.91189]
[1723298590772,11.03361,2615.9,2615.2,1.91189]
[1723298591276,6.687,2615.9,2615.2,2.3262]
[1723298591472,3.687,2615.5,2615.1,19.4599976]
[1723298591699,4.91181,2615.4,2615.1,19.4599976]
[1723298592822,1.91184,2615.3,2615.1,19.4599976]
[1723298593714,4.91181,2615.4,2615.2,0.05092357]
[1723298594074,1.91182,2615.3,2615.2,0.05092357]
[1723298594522,3.82364,2615.3,2615.2,0.05092357]
[1723298594819,10.353404,2615.3,2615.2,0.05092357]
[1723298595179,1.91205,2615.0,2614.5,19.4599976]
[1723298595715,6.687,2615.1,2614.5,21.3723476]
[1723298596010,3.0,2615.1,2614.8,1.91214]
[1723298596211,3.0,2615.4,2614.9,1.91211]
[1723298596378,3.0,2615.4,2614.9,1.91206]
[1723298596797,3.0,2615.4,2614.8,0.615066]
[1723298597002,4.91175,2615.4,2614.8,0.615066]
[1723298597225,4.91175,2615.4,2614.8,2.527246]
[1723298597434,3.0,2615.4,2614.9,2.5886746]
[1723298597899,4.91175,2615.4,2614.9,0.6765646]
[1723298598102,4.91175,2615.4,2614.7,4.2384]
[1723298598302,4.91175,2615.4,2614.7,6.15061]
[1723298598531,3.0,2615.4,2614.7,4.2384]
[1723298598735,3.0,2615.4,2614.9,1.91206]
[1723298598939,4.9118,2615.4,2614.8,19.8838376]
[1723298599904,3.0,2615.4,2614.8,19.8838376]
[1723298601137,3.0,2615.4,2614.9,1.9121]
[1723298601340,3.0,2615.4,2614.9,4.51553376]
[1723298602013,3.0,2615.4,2615.0,1.91198]
[1723298602513,3.0,2615.4,2615.1,1.91195]
[1723298602711,3.0,2615.4,2615.1,3.82387]
[1723298602917,3.0,2615.4,2615.1,4.46660038]
[1723298603311,8.07709,2615.9,2615.2,2.3262]
[1723298603516,5.59839,2615.9,2615.2,2.3262]
[1723298603716,2.764,2615.7,2615.3,2.4340848]
[1723298604106,2.764,2615.7,2615.3,4.3459048]
[1723298604353,2.764,2615.7,2615.3,2.4340848]
[1723298604354,4.67554,2615.7,2615.3,2.4340848]
[1723298604761,1.91161,2615.6,2615.2,19.4599976]
[1723298605072,2.764,2615.4,2615.2,19.4599976]
[1723298605863,4.67579,2615.4,2615.2,19.4599976]
[1723298607553,2.764,2615.4,2615.2,19.4599976]
[1723298607771,2.764,2615.4,2614.9,21.3720576]
[1723298608077,2.764,2615.4,2614.9,24.49187036]
[1723298608841,4.67575,2615.4,2615.0,0.05104089]
[1723298609042,2.764,2615.1,2615.0,0.05104089]
[1723298609641,2.764,2615.1,2614.7,19.4599976]
[1723298609838,4.67597,2615.1,2615.0,0.05104089]
[1723298610083,1.91207,2615.0,2614.6,19.4599976]
[1723298610378,2.764,2614.8,2614.4,26.9499976]
[1723298610541,2.764,2614.5,2613.9,7.49]
[1723298610748,4.67641,2614.5,2613.9,7.49]
[1723298611366,3.0,2614.4,2613.9,7.49]
[1723298612150,3.0,2614.4,2613.7,33.6829476]
[1723298612151,3.0,2614.4,2613.7,19.4599976]
[1723298612355,1.9126,2614.3,2613.7,22.78511136]
[1723298612966,1.9126,2614.3,2613.7,24.69809136]
[1723298614351,3.0,2614.4,2614.0,1.91275]
[1723298614829,5.1567,2614.8,2614.1,0.191275]
[1723298615081,5.1567,2614.8,2614.4,1.91246]
[1723298615082,2.764,2614.8,2614.4,1.91246]
[1723298615678,2.764,2614.8,2614.2,4.38759]
[1723298615880,2.764,2614.8,2614.4,1.91247]
[1723298616201,2.764,2615.1,2614.6,1.91233]
[1723298616396,2.764,2615.1,2614.6,3.82461]
[1723298616713,2.764,2615.1,2614.5,0.19889577]
[1723298617009,2.764,2615.1,2614.6,1.91228]
[1723298617310,3.0,2615.0,2614.7,1.91221]
[1723298619485,3.0,2615.0,2614.7,21.3722076]
[1723298620082,2.764,2614.8,2614.7,19.4599976]
[1723298620879,5.764,2614.8,2614.7,19.4599976]
[1723298621201,7.67619,2614.8,2614.7,19.4599976]
[1723298621406,11.027721,2614.8,2614.7,19.4599976]
[1723298621913,10.06889,2614.8,2614.7,19.4599976]
[1723298622105,5.764,2614.8,2614.7,19.4599976]
[1723298622608,7.67619,2614.8,2614.7,19.4599976]
[1723298623808,7.67619,2614.8,2614.7,19.51154023]
[1723298624124,8.24860406,2614.8,2614.7,19.51154023]
[1723298625580,8.24860406,2614.8,2614.7,0.05154263]
[1723298625773,9.07346447,2614.8,2614.7,0.05154263]
[1723298625975,1.91234,2614.6,2614.2,19.4599976]
[1723298626176,1.91246,2614.5,2614.2,19.4599976]
[1723298626408,4.91246,2614.5,2614.2,19.4599976]
[1723298627325,1.91258,2614.3,2613.9,7.49]
[1723298627523,4.67664,2614.2,2613.9,7.49]
[1723298627682,4.67664,2614.2,2613.6,1.91306]
[1723298628485,3.0,2614.1,2613.6,1.91306]
[1723298629000,4.91271,2614.1,2613.5,21.9393976]
[1723298629536,6.82547,2614.1,2613.5,21.9393976]
[1723298629711,4.91271,2614.1,2613.5,21.9393976]
[1723298630308,6.82547,2614.1,2613.5,21.9393976]
[1723298630688,4.91271,2614.1,2613.5,21.9393976]
[1723298631111,4.91271,2614.1,2613.6,1.91306]
[1723298631282,4.91271,2614.1,2613.5,21.9393976]
[1723298631283,3.0,2614.1,2613.9,1.9128]
[1723298631491,5.1598,2614.8,2614.0,2.4794]
[1723298631827,1.9123,2614.7,2614.1,1.9127]
[1723298632122,1.9123,2614.7,2614.0,21.9393976]
[1723298632123,4.67646,2614.5,2614.0,19.4599976]
[1723298632492,1.91248,2614.4,2614.0,19.4599976]
[1723298632821,3.0,2614.4,2614.0,23.5624281]
[1723298634200,3.0,2614.4,2614.0,21.6496681]
[1723298636221,3.0,2614.4,2614.0,19.4599976]
[1723298637531,3.0,2614.4,2613.9,1.91279]
[1723298637532,3.0,2614.4,2613.9,19.4599976]
[1723298637694,4.67663,2614.2,2613.9,19.4599976]
[1723298638032,4.67663,2614.2,2613.6,21.3730576]
[1723298638397,1.91292,2613.8,2613.2,21.3733476]
[1723298638625,1.91292,2613.8,2613.2,22.7956486]
[1723298638826,4.91285,2613.9,2613.3,1.96660265]
[1723298639153,1.91285,2613.9,2613.3,1.96660265]
[1723298639438,4.91285,2613.9,2613.4,2.47622513]
[1723298639726,4.91285,2613.9,2613.5,0.05319122]
[1723298640428,3.0,2613.9,2613.5,0.05319122]
[1723298640654,1.91282,2614.0,2613.5,0.05319122]
[1723298640929,1.91282,2614.0,2613.5,0.50510112]
[1723298642107,3.0,2614.1,2613.6,1.98953721]
[1723298642307,3.0,2614.1,2613.7,1.96596982]
[1723298642740,3.0,2614.1,2613.8,1.91291]
[1723298643040,3.0,2614.1,2613.9,0.05280844]
[1723298643199,3.0,2614.1,2614.0,1.91277]
[1723298643393,3.0,2614.4,2614.0,1.91277]
[1723298643630,3.0,2614.4,2614.0,1.96548277]
[1723298644130,3.0,2614.4,2614.0,1.96544277]
[1723298645622,4.67667,2614.2,2614.0,0.05271277]
[1723298645830,3.0,2614.1,2614.0,0.05271277]
[1723298646020,4.9127,2614.1,2613.7,19.4599976]
[1723298646228,4.9127,2614.1,2614.0,0.05263547]
[1723298646400,3.0,2614.1,2613.8,1.9129]
[1723298646596,3.0,2614.1,2614.0,0.05263547]
[1723298646807,3.0,2614.1,2613.9,0.05273114]
[1723298647036,3.0,2614.1,2613.8,2.295496]
[1723298647037,3.0,2614.1,2614.0,0.05263547]
[1723298647436,3.0,2614.1,2613.8,2.295466]
[1723298647736,3.0,2614.1,2614.0,0.05263547]
[1723298648125,3.0,2614.1,2613.6,1.91305]
[1723298648509,3.0,2614.1,2613.7,0.05292252]